fUST/lending_fUST_20240902
["ID","MTS","AMOUNT","RATE_DAILY","PERIOD"]
[336845220,1725208444419,-500.0,0.00025479,2]
[336845221,1725208444442,-211.24772185,0.00025479,2]
[336845222,1725208444466,-500.0,0.00025479,2]
[336845223,1725208444489,-500.0,0.00025479,2]
[336845224,1725208444512,-500.0,0.00025479,2]
[336845225,1725208444535,-323.23273237,0.00025479,2]
[336845226,1725208444558,-200.0,0.00025479,2]
[336845227,1725208444581,-500.0,0.00025479,2]
[336845228,1725208444605,-500.0,0.00025479,2]
[336845229,1725208444628,-500.0,0.00025479,2]
[336845230,1725208444653,-1399.19,0.00025479,2]
[336845231,1725208444677,-500.0,0.00025479,2]
[336845232,1725208444700,-161.99856645,0.00025479,2]
[336845233,1725208444723,-507.57442435,0.00025479,2]
[336845234,1725208444746,-500.0,0.00025479,2]
[336845235,1725208444769,-500.0,0.00025479,2]
[336845236,1725208444792,-500.0,0.00025479,2]
[336845237,1725208444815,-500.0,0.00025479,2]
[336845238,1725208444838,-500.0,0.00025479,2]
[336845239,1725208444862,-1035.37,0.00025479,2]
[336845240,1725208444886,-500.0,0.00025479,2]
[336845241,1725208444912,-319.01928951,0.00025479,2]
[336845242,1725208444933,-500.0,0.00025479,2]
[336845243,1725208444956,-500.0,0.00025479,2]
[336845244,1725208444979,-470.20739841,0.00025479,2]
[336845245,1725208445002,-500.0,0.00025479,2]
[336845246,1725208445024,-500.0,0.00025479,2]
[336845247,1725208445047,-500.0,0.00025479,2]
[336845248,1725208445069,-500.0,0.00025479,2]
[336845249,1725208445093,-774.17,0.00025479,2]
[336845250,1725208445115,-743.54,0.00025479,2]
[336845251,1725208445137,-500.0,0.00025479,2]
[336845252,1725208445160,-675.09,0.00025479,2]
[336845253,1725208445183,-500.0,0.00025479,2]
[336845254,1725208445206,-500.0,0.00025479,2]
[336845255,1725208445230,-659.95,0.00025479,2]
[336845256,1725208445252,-713.87,0.00025479,2]
[336845257,1725208445278,-706.75,0.00025479,2]
[336845258,1725208445301,-500.0,0.00025479,2]
[336845259,1725208445324,-601.5,0.00025479,2]
[336845260,1725208445347,-1506.67,0.00025479,2]
[336845261,1725208445374,-995.04,0.00025479,2]
[336845262,1725208445398,-577.91,0.00025479,2]
[336845263,1725208445421,-500.0,0.00025479,2]
[336845264,1725208445444,-569.44,0.00025479,2]
[336845265,1725208445467,-1264.63,0.00025479,2]
[336845266,1725208445490,-500.0,0.00025479,2]
[336845267,1725208445512,-2037.44,0.00025479,2]
[336845268,1725208445534,-500.0,0.00025479,2]
[336845269,1725208445559,-500.0,0.00025479,2]
[336845270,1725208445583,-1592.91,0.00025479,2]
[336845271,1725208445606,-184.16775644,0.00025479,2]
[336845272,1725208445628,-2244.05,0.00025479,2]
[336845273,1725208445653,-500.0,0.00025479,2]
[336845274,1725208445677,-530.88,0.00025479,2]
[336845275,1725208445699,-500.0,0.00025479,2]
[336845276,1725208445721,-500.0,0.00025479,2]
[336845277,1725208445744,-500.0,0.00025479,2]
[336845278,1725208445766,-500.0,0.00025479,2]
[336845279,1725208445788,-500.0,0.00025479,2]
[336845280,1725208445811,-500.0,0.00025479,2]
[336845281,1725208445834,-517.37,0.00025479,2]
[336845282,1725208445855,-1559.63,0.00025479,2]
[336845283,1725208445878,-500.0,0.00025479,2]
[336845284,1725208445902,-500.0,0.00025479,2]
[336845285,1725208445924,-500.0,0.00025479,2]
[336845286,1725208445947,-500.0,0.00025479,2]
[336845287,1725208445969,-540.89,0.00025479,2]
[336845288,1725208445992,-616.42,0.00025479,2]
[336845289,1725208446014,-1049.07,0.00025479,2]
[336845290,1725208446036,-500.0,0.00025479,2]
[336845291,1725208446059,-500.0,0.00025479,2]
[336845292,1725208446083,-349.146511,0.00025479,7]
[336845293,1725208446106,-737.46,0.00025479,2]
[336845294,1725208446129,-602.39,0.00025479,2]
[336845295,1725208446152,-349.146511,0.00025479,7]
[336845296,1725208446175,-828.6,0.00025479,2]
[336845297,1725208446198,-1094.09,0.00025479,2]
[336845298,1725208446220,-500.0,0.00025479,2]
[336845299,1725208446242,-500.0,0.00025479,2]
[336845300,1725208446265,-500.0,0.00025479,2]
[336845301,1725208446293,-1436.31,0.00025479,2]
[336845302,1725208446318,-500.0,0.00025479,2]
[336845303,1725208446340,-914.04,0.00025479,2]
[336845304,1725208446365,-974.0,0.00025479,2]
[336845305,1725208446388,-2241.31,0.00025479,2]
[336845306,1725208446413,-500.0,0.00025479,2]
[336845307,1725208446436,-500.0,0.00025479,2]
[336845308,1725208446458,-500.0,0.00025479,2]
[336845309,1725208446481,-571.88,0.00025479,2]
[336845310,1725208446503,-500.0,0.00025479,2]
[336845311,1725208446525,-500.0,0.00025479,2]
[336845312,1725208446548,-500.0,0.00025479,2]
[336845313,1725208446570,-25.35004315,0.00025479,2]
[336845314,1725208517607,-183.502782,0.00023872,2]
[336845315,1725208517630,-206.440108,0.00024122,2]
[336845316,1725208517653,-206.440108,0.00024188,2]
[336845317,1725208517676,-206.440108,0.00024255,2]
[336845318,1725208517700,-206.440108,0.00024321,2]
[336845319,1725208517723,-206.440108,0.00024387,2]
[336845320,1725208517746,-206.440108,0.00024453,2]
[336845321,1725208517769,-206.440108,0.00024519,2]
[336845322,1725208517792,-2698.89523173,0.00024557,2]
[336845323,1725208517814,-206.440108,0.00024585,2]
[336845324,1725208517837,-206.440108,0.00024652,2]
[336845325,1725208517859,-300.0,0.00024656,2]
[336845326,1725208517882,-300.0,0.00024656,2]
[336845327,1725208517906,-614.55,0.00024657,2]
[336845328,1725208517929,-500.0,0.00024657,2]
[336845329,1725208517953,-500.0,0.00024657,2]
[336845330,1725208517978,-662.39,0.00024657,2]
[336845331,1725208518001,-500.0,0.00024657,2]
[336845332,1725208518023,-1977.52,0.00024657,2]
[336845333,1725208518047,-551.67,0.00024657,2]
[336845334,1725208518070,-2547.84,0.00024657,2]
[336845335,1725208518093,-500.0,0.00024657,2]
[336845336,1725208518117,-683.21,0.00024657,2]
[336845337,1725208518141,-500.0,0.00024657,2]
[336845338,1725208518164,-500.0,0.00024657,2]
[336845339,1725208518188,-500.0,0.00024657,2]
[336845340,1725208518213,-500.0,0.00024657,2]
[336845341,1725208518235,-500.0,0.00024657,2]
[336845342,1725208518258,-1076.23,0.00024657,2]
[336845343,1725208518282,-1563.4,0.00024657,2]
[336845344,1725208518309,-500.0,0.00024657,2]
[336845345,1725208518331,-500.0,0.00024657,2]
[336845346,1725208518355,-2136.59,0.00024657,2]
[336845347,1725208518378,-597.53,0.00024657,2]
[336845348,1725208518401,-500.0,0.00024657,2]
[336845349,1725208518423,-1412.58,0.00024657,2]
[336845350,1725208518447,-500.0,0.00024657,2]
[336845351,1725208518471,-500.0,0.00024657,2]
[336845352,1725208518495,-500.0,0.00024657,2]
[336845353,1725208518520,-500.0,0.00024657,2]
[336845354,1725208518543,-500.0,0.00024657,2]
[336845355,1725208518565,-500.0,0.00024657,2]
[336845356,1725208518588,-2321.06,0.00024657,2]
[336845357,1725208518611,-500.0,0.00024657,2]
[336845358,1725208518634,-500.0,0.00024657,2]
[336845359,1725208518658,-624.83,0.00024657,2]
[336845360,1725208518682,-937.31,0.00024657,2]
[336845361,1725208518706,-679.44,0.00024657,2]
[336845362,1725208518729,-500.0,0.00024657,2]
[336845363,1725208518752,-1642.54,0.00024657,2]
[336845364,1725208518775,-500.0,0.00024657,2]
[336845365,1725208518799,-500.0,0.00024657,2]
[336845366,1725208518822,-500.0,0.00024657,2]
[336845367,1725208518844,-500.0,0.00024657,2]
[336845368,1725208518866,-500.0,0.00024657,2]
[336845369,1725208518890,-1615.73,0.00024657,2]
[336845370,1725208518913,-500.0,0.00024657,2]
[336845371,1725208518937,-500.9626219,0.00024657,2]
[336845372,1725208518960,-500.0,0.00024657,2]
[336845373,1725208518983,-500.0,0.00024657,2]
[336845374,1725208519008,-500.0,0.00024657,2]
[336845375,1725208519033,-500.0,0.00024657,2]
[336845376,1725208519057,-2223.21,0.00024657,2]
[336845377,1725208519082,-500.0,0.00024657,2]
[336845378,1725208519105,-500.0,0.00024657,2]
[336845379,1725208519128,-605.87,0.00024657,2]
[336845380,1725208519153,-500.0,0.00024657,2]
[336845381,1725208519178,-500.0,0.00024657,2]
[336845382,1725208519204,-546.97,0.00024657,2]
[336845383,1725208519229,-500.0,0.00024657,2]
[336845384,1725208519253,-500.0,0.00024657,2]
[336845385,1725208519278,-500.0,0.00024657,2]
[336845386,1725208519303,-500.0,0.00024657,2]
[336845387,1725208519327,-500.0,0.00024657,2]
[336845388,1725208519353,-505.27,0.00024657,2]
[336845389,1725208519382,-2541.93,0.00024657,2]
[336845390,1725208519408,-500.0,0.00024657,2]
[336845391,1725208519432,-500.0,0.00024657,2]
[336845392,1725208519458,-500.0,0.00024657,2]
[336845393,1725208519483,-500.0,0.00024657,2]
[336845394,1725208519508,-500.0,0.00024657,2]
[336845395,1725208519532,-376.20215,0.00024657,2]
[336845396,1725208519555,-500.0,0.00024657,2]
[336845397,1725208519579,-500.0,0.00024657,2]
[336845398,1725208519603,-500.0,0.00024657,2]
[336845399,1725208519627,-500.0,0.00024657,2]
[336845400,1725208519652,-2393.85,0.00024657,2]
[336845401,1725208519675,-1003.61,0.00024657,2]
[336845402,1725208519700,-553.22855574,0.00024657,2]
[336845403,1725208519723,-500.0,0.00024657,2]
[336845404,1725208519747,-500.0,0.00024657,2]
[336845405,1725208519772,-206.440108,0.00024718,2]
[336845406,1725208519796,-206.440108,0.00024784,2]
[336845407,1725208519820,-206.440108,0.0002485,2]
[336845408,1725208519844,-206.440108,0.00024916,2]
[336845409,1725208519867,-13587.91,0.00024921,3]
[336845410,1725208520027,-500.0,0.00024931,2]
[336845411,1725208520063,-662.39,0.00024931,2]
[336845412,1725208520088,-1977.52,0.00024931,2]
[336845413,1725208520111,-551.67,0.00024931,2]
[336845414,1725208520135,-2547.84,0.00024931,2]
[336845415,1725208520158,-683.21,0.00024931,2]
[336845416,1725208520183,-500.0,0.00024931,2]
[336845417,1725208520209,-500.0,0.00024931,2]
[336845418,1725208520233,-500.0,0.00024931,2]
[336845419,1725208520256,-500.0,0.00024931,2]
[336845420,1725208520279,-500.0,0.00024931,2]
[336845421,1725208520304,-1076.23,0.00024931,2]
[336845422,1725208520327,-1563.4,0.00024931,2]
[336845423,1725208520352,-500.0,0.00024931,2]
[336845424,1725208520378,-500.0,0.00024931,2]
[336845425,1725208520403,-2136.59,0.00024931,2]
[336845426,1725208520428,-597.53,0.00024931,2]
[336845427,1725208520461,-503.85607641,0.00024931,2]
[336845428,1725208520487,-1412.58,0.00024931,2]
[336845429,1725208520512,-500.0,0.00024931,2]
[336845430,1725208520536,-501.17095855,0.00024931,2]
[336845431,1725208520560,-500.0,0.00024931,2]
[336845432,1725208520585,-500.0,0.00024931,2]
[336845433,1725208520607,-500.0,0.00024931,2]
[336845434,1725208520631,-2321.06,0.00024931,2]
[336845435,1725208520654,-500.0,0.00024931,2]
[336845436,1725208520677,-937.31,0.00024931,2]
[336845437,1725208520705,-624.83,0.00024931,2]
[336845438,1725208520729,-679.44,0.00024931,2]
[336845439,1725208520753,-500.0,0.00024931,2]
[336845440,1725208520776,-1642.54,0.00024931,2]
[336845441,1725208520801,-500.0,0.00024931,2]
[336845442,1725208520825,-500.0,0.00024931,2]
[336845443,1725208520850,-500.0,0.00024931,2]
[336845444,1725208520874,-500.0,0.00024931,2]
[336845445,1725208520899,-1615.73,0.00024931,2]
[336845446,1725208520931,-500.0,0.00024931,2]
[336845447,1725208520963,-245.68104767,0.00024931,2]
[336845448,1725208520988,-2223.21,0.00024931,2]
[336845449,1725208521012,-502.92912567,0.00024931,2]
[336845450,1725208521036,-605.87,0.00024931,2]
[336845451,1725208521060,-500.0,0.00024931,2]
[336845452,1725208521083,-500.0,0.00024931,2]
[336845453,1725208521106,-500.0,0.00024931,2]
[336845454,1725208521129,-500.0,0.00024931,2]
[336845455,1725208521153,-505.27,0.00024931,2]
[336845456,1725208521175,-2541.93,0.00024931,2]
[336845457,1725208521199,-295.10379098,0.00024931,2]
[336845458,1725208521223,-500.0,0.00024931,2]
[336845459,1725208521247,-500.0,0.00024931,2]
[336845460,1725208521270,-500.0,0.00024931,2]
[336845461,1725208521296,-500.0,0.00024931,2]
[336845462,1725208521321,-500.0,0.00024931,2]
[336845463,1725208521345,-500.0,0.00024931,2]
[336845464,1725208521369,-2393.85,0.00024931,2]
[336845465,1725208521397,-1003.61,0.00024931,2]
[336845466,1725208521420,-500.0,0.00024931,2]
[336845467,1725208521444,-503.54963066,0.00024931,2]
[336845468,1725208521470,-206.440108,0.00024982,2]
[336845469,1725208521494,-206.440108,0.00025049,2]
[336845470,1725208521519,-206.440108,0.00025115,2]
[336845471,1725208521548,-206.440108,0.00025181,2]
[336845472,1725208521583,-16305.5,0.00025195,3]
[336845473,1725208521613,-662.39,0.00025205,2]
[336845474,1725208521648,-1977.52,0.00025205,2]
[336845475,1725208521682,-551.67,0.00025205,2]
[336845476,1725208521716,-2547.84,0.00025205,2]
[336845477,1725208521747,-683.21,0.00025205,2]
[336845478,1725208521780,-500.0,0.00025205,2]
[336845479,1725208521809,-500.0,0.00025205,2]
[336845480,1725208521839,-500.0,0.00025205,2]
[336845481,1725208521871,-500.0,0.00025205,2]
[336845482,1725208521904,-1076.23,0.00025205,2]
[336845483,1725208521938,-1563.4,0.00025205,2]
[336845484,1725208521966,-500.0,0.00025205,2]
[336845485,1725208521996,-500.0,0.00025205,2]
[336845486,1725208522029,-2136.59,0.00025205,2]
[336845487,1725208522058,-597.53,0.00025205,2]
[336845488,1725208522088,-1412.58,0.00025205,2]
[336845489,1725208522118,-500.0,0.00025205,2]
[336845490,1725208522145,-500.0,0.00025205,2]
[336845491,1725208522173,-500.0,0.00025205,2]
[336845492,1725208522201,-500.0,0.00025205,2]
[336845493,1725208522229,-937.31,0.00025205,2]
[336845494,1725208522259,-624.83,0.00025205,2]
[336845495,1725208522290,-679.44,0.00025205,2]
[336845496,1725208522321,-2321.06,0.00025205,2]
[336845497,1725208522353,-1642.54,0.00025205,2]
[336845498,1725208522382,-500.0,0.00025205,2]
[336845499,1725208522412,-500.0,0.00025205,2]
[336845500,1725208522442,-500.0,0.00025205,2]
[336845501,1725208522475,-1615.73,0.00025205,2]
[336845502,1725208522504,-500.0,0.00025205,2]
[336845503,1725208522536,-2223.21,0.00025205,2]
[336845504,1725208522567,-605.87,0.00025205,2]
[336845505,1725208522596,-500.0,0.00025205,2]
[336845506,1725208522625,-541.82405022,0.00025205,2]
[336845507,1725208522655,-500.0,0.00025205,2]
[336845508,1725208522685,-505.27,0.00025205,2]
[336845509,1725208522716,-2541.93,0.00025205,2]
[336845510,1725208522760,-500.0,0.00025205,2]
[336845511,1725208522804,-520.27995618,0.00025205,2]
[336845512,1725208522841,-500.0,0.00025205,2]
[336845513,1725208522878,-500.0,0.00025205,2]
[336845514,1725208522912,-500.0,0.00025205,2]
[336845515,1725208522948,-2393.85,0.00025205,2]
[336845516,1725208522980,-1003.61,0.00025205,2]
[336845517,1725208523012,-500.0,0.00025205,2]
[336845518,1725208523043,-206.440108,0.00025247,2]
[336845519,1725208523073,-500.0,0.00025273,2]
[336845520,1725208523103,-206.440108,0.00025313,2]
[336845521,1725208523132,-206.440108,0.00025379,2]
[336845522,1725208523162,-163.8898445,0.00025386,2]
[336845523,1725208523192,-153.0,0.00025386,2]
[336845524,1725208523225,-19566.6,0.00025459,3]
[336845525,1725208523250,-458.24,0.00025469,3]
[336845526,1725208523273,-229.12,0.00025469,3]
[336845527,1725208523299,-12814.4,0.00025469,3]
[336845528,1725208523323,-687.38,0.00025469,3]
[336845529,1725208523348,-1116.57995685,0.00025479,2]
[336845530,1725208523371,-499.442162,0.00025479,7]
[336845531,1725208523673,-564.06,0.00025479,2]
[336845532,1725208523699,-500.0,0.00025479,2]
[336845533,1725208523723,-499.442162,0.00025479,7]
[336845534,1725208523747,-500.0,0.00025479,2]
[336845535,1725208523770,-500.0,0.00025479,2]
[336845536,1725208523794,-1601.33,0.00025479,2]
[336845537,1725208523817,-500.0,0.00025479,2]
[336845538,1725208523841,-500.0,0.00025479,2]
[336845539,1725208523864,-749.01,0.00025479,2]
[336845540,1725208523887,-710.82,0.00025479,2]
[336845541,1725208523910,-500.0,0.00025479,2]
[336845542,1725208523933,-500.0,0.00025479,2]
[336845543,1725208523958,-1258.62,0.00025479,2]
[336845544,1725208523981,-2055.11,0.00025479,2]
[336845545,1725208524008,-799.77,0.00025479,2]
[336845546,1725208524032,-593.47,0.00025479,2]
[336845547,1725208524056,-958.67,0.00025479,2]
[336845548,1725208524079,-500.0,0.00025479,2]
[336845549,1725208524105,-500.0,0.00025479,2]
[336845550,1725208524128,-518.21,0.00025479,2]
[336845551,1725208524152,-500.0,0.00025479,2]
[336845552,1725208524174,-500.0,0.00025479,2]
[336845553,1725208524197,-689.45,0.00025479,2]
[336845554,1725208524219,-500.0,0.00025479,2]
[336845555,1725208524242,-500.0,0.00025479,2]
[336845556,1725208524265,-500.0,0.00025479,2]
[336845557,1725208524288,-500.0,0.00025479,2]
[336845558,1725208524315,-500.0,0.00025479,2]
[336845559,1725208524339,-500.0,0.00025479,2]
[336845560,1725208524362,-500.0,0.00025479,2]
[336845561,1725208524386,-500.0,0.00025479,2]
[336845562,1725208524410,-500.0,0.00025479,2]
[336845563,1725208524433,-500.0,0.00025479,2]
[336845564,1725208524458,-500.0,0.00025479,2]
[336845565,1725208524483,-551.14,0.00025479,2]
[336845566,1725208524505,-500.0,0.00025479,2]
[336845567,1725208524528,-500.0,0.00025479,2]
[336845568,1725208524550,-500.0,0.00025479,2]
[336845569,1725208524575,-500.0,0.00025479,2]
[336845570,1725208524600,-500.0,0.00025479,2]
[336845571,1725208524622,-500.0,0.00025479,2]
[336845572,1725208524645,-500.0,0.00025479,2]
[336845573,1725208524669,-993.8,0.00025479,2]
[336845574,1725208524691,-824.95,0.00025479,2]
[336845575,1725208524715,-151.0,0.00025479,7]
[336845576,1725208524740,-500.0,0.00025479,2]
[336845577,1725208524764,-500.0,0.00025479,2]
[336845578,1725208524787,-500.0,0.00025479,2]
[336845579,1725208524811,-500.0,0.00025479,2]
[336845580,1725208524834,-569.86,0.00025479,2]
[336845581,1725208524858,-500.0,0.00025479,2]
[336845582,1725208524883,-2707.82,0.00025479,2]
[336845583,1725208524908,-2694.87,0.00025479,2]
[336845584,1725208524932,-500.0,0.00025479,2]
[336845585,1725208524956,-500.0,0.00025479,2]
[336845586,1725208524981,-500.0,0.00025479,2]
[336845587,1725208525004,-500.0,0.00025479,2]
[336845588,1725208525036,-327.59642563,0.00025479,2]
[336845589,1725208525073,-12817.37,0.00025479,2]
[336845590,1725208525098,-500.0,0.00025479,2]
[336845591,1725208525123,-614.2852926,0.00025479,2]
[336845592,1725208525149,-1985.04,0.00025479,2]
[336845593,1725208525177,-2836.5,0.00025479,2]
[336845594,1725208525205,-500.0,0.00025479,2]
[336845595,1725208525232,-410.0536776,0.00025479,2]
[336845596,1725208525257,-500.0,0.00025479,2]
[336845597,1725208525284,-2201.24,0.00025479,2]
[336845598,1725208525317,-500.0,0.00025479,2]
[336845599,1725208525344,-500.0,0.00025479,2]
[336845600,1725208525371,-4445.91,0.00025479,2]
[336845601,1725208525397,-510.03109359,0.00025479,2]
[336845602,1725208525421,-872.85,0.00025479,2]
[336845603,1725208525446,-564.24,0.00025479,2]
[336845604,1725208525474,-2251.65,0.00025479,2]
[336845605,1725208525499,-982.52,0.00025479,2]
[336845606,1725208525523,-510.49,0.00025479,2]
[336845607,1725208525547,-635.02009866,0.00025479,2]
[336845608,1725208525572,-500.0,0.00025479,2]
[336845609,1725208525597,-3333.34,0.00025479,2]
[336845610,1725208525621,-532.25,0.00025479,2]
[336845611,1725208525646,-500.0,0.00025479,2]
[336845612,1725208525672,-793.81,0.00025479,2]
[336845613,1725208525697,-500.0,0.00025479,2]
[336845614,1725208525728,-500.0,0.00025479,2]
[336845615,1725208525759,-520.07,0.00025479,2]
[336845616,1725208525785,-1344.05,0.00025479,2]
[336845617,1725208525810,-788.39,0.00025479,2]
[336845618,1725208525836,-650.81,0.00025479,2]
[336845619,1725208525861,-2003.28,0.00025479,2]
[336845620,1725208525888,-1685.35,0.00025479,2]
[336845621,1725208525913,-1902.09,0.00025479,2]
[336845622,1725208525937,-518.29,0.00025479,2]
[336845623,1725208525968,-500.0,0.00025479,2]
[336845624,1725208525992,-500.0,0.00025479,2]
[336845625,1725208526017,-500.0,0.00025479,2]
[336845626,1725208526041,-500.0,0.00025479,2]
[336845627,1725208526067,-1976.48,0.00025479,2]
[336845628,1725208526093,-1359.91,0.00025479,2]
[336845629,1725208526118,-1808.54,0.00025479,2]
[336845630,1725208526142,-880.31,0.00025479,2]
[336845631,1725208526166,-500.0,0.00025479,2]
[336845632,1725208526191,-2213.92,0.00025479,2]
[336845633,1725208526222,-546.38,0.00025479,2]
[336845634,1725208526248,-3134.93,0.00025479,2]
[336845635,1725208526274,-919.7,0.00025479,2]
[336845636,1725208526302,-500.0,0.00025479,2]
[336845637,1725208526329,-500.0,0.00025479,2]
[336845638,1725208526354,-1758.51,0.00025479,2]
[336845639,1725208526378,-811.51,0.00025479,2]
[336845640,1725208526406,-500.0,0.00025479,2]
[336845641,1725208526430,-1405.42,0.00025479,2]
[336845642,1725208526462,-500.0,0.00025479,2]
[336845643,1725208526487,-867.6,0.00025479,2]
[336845644,1725208526511,-1494.95,0.00025479,2]
[336845645,1725208526536,-799.97,0.00025479,2]
[336845646,1725208526560,-718.17,0.00025479,2]
[336845647,1725208526583,-982.8,0.00025479,2]
[336845648,1725208526606,-500.0,0.00025479,2]
[336845649,1725208526630,-5754.37,0.00025479,2]
[336845650,1725208526654,-500.0,0.00025479,2]
[336845651,1725208526679,-10060.76,0.00025479,2]
[336845652,1725208526704,-662.39,0.00025479,2]
[336845653,1725208526728,-1977.52,0.00025479,2]
[336845654,1725208526751,-551.67,0.00025479,2]
[336845655,1725208526775,-2547.84,0.00025479,2]
[336845656,1725208526978,-683.21,0.00025479,2]
[336845657,1725208527006,-500.0,0.00025479,2]
[336845658,1725208527031,-500.0,0.00025479,2]
[336845659,1725208527055,-500.0,0.00025479,2]
[336845660,1725208527079,-1076.23,0.00025479,2]
[336845661,1725208527102,-1563.4,0.00025479,2]
[336845662,1725208527125,-500.0,0.00025479,2]
[336845663,1725208527150,-500.0,0.00025479,2]
[336845664,1725208527173,-2136.59,0.00025479,2]
[336845665,1725208527196,-597.53,0.00025479,2]
[336845666,1725208527222,-1412.58,0.00025479,2]
[336845667,1725208527246,-500.0,0.00025479,2]
[336845668,1725208527271,-500.0,0.00025479,2]
[336845669,1725208527298,-500.0,0.00025479,2]
[336845670,1725208527323,-500.0,0.00025479,2]
[336845671,1725208527348,-937.31,0.00025479,2]
[336845672,1725208527373,-624.83,0.00025479,2]
[336845673,1725208527399,-679.44,0.00025479,2]
[336845674,1725208527423,-2321.06,0.00025479,2]
[336845675,1725208527447,-1642.54,0.00025479,2]
[336845676,1725208527475,-500.0,0.00025479,2]
[336845677,1725208527498,-500.0,0.00025479,2]
[336845678,1725208527522,-1615.73,0.00025479,2]
[336845679,1725208527546,-2223.21,0.00025479,2]
[336845680,1725208527569,-605.87,0.00025479,2]
[336845681,1725208527592,-500.0,0.00025479,2]
[336845682,1725208527615,-500.0,0.00025479,2]
[336845683,1725208527639,-505.27,0.00025479,2]
[336845684,1725208527663,-2541.93,0.00025479,2]
[336845685,1725208527686,-500.0,0.00025479,2]
[336845686,1725208527710,-500.0,0.00025479,2]
[336845687,1725208527733,-2393.85,0.00025479,2]
[336845688,1725208527756,-1003.61,0.00025479,2]
[336845689,1725208527779,-500.0,0.00025479,2]
[336845690,1725208527802,-5962.56,0.000255,14]
[336845691,1725208527826,-150.112233,0.000255,7]
[336845692,1725208527850,-150.112233,0.000256,6]
[336845693,1725208527872,-152.831,0.0002569,2]
[336845694,1725208527895,-563.607,0.0002569,2]
[336845695,1725208527917,-250.0,0.000257,7]
[336845696,1725208527940,-250.0,0.000257,7]
[336845697,1725208527966,-175.818764,0.000257,2]
[336845698,1725208527991,-3000.0,0.000257,2]
[336845699,1725208528014,-3000.0,0.000257,2]
[336845700,1725208528037,-300.0,0.000257,2]
[336845701,1725208528061,-3000.0,0.0002571,2]
[336845702,1725208528084,-3000.0,0.0002571,2]
[336845703,1725208528106,-3000.0,0.0002572,2]
[336845704,1725208528130,-3000.0,0.0002572,2]
[336845705,1725208528152,-3000.0,0.0002573,2]
[336845706,1725208528176,-3000.0,0.0002573,2]
[336845707,1725208528201,-3000.0,0.0002574,2]
[336845708,1725208528225,-3000.0,0.0002574,2]
[336845709,1725208528250,-3000.0,0.0002575,2]
[336845710,1725208528274,-3000.0,0.0002575,2]
[336845711,1725208528298,-150.01,0.00025752,2]
[336845712,1725208528326,-506.91719168,0.00025752,2]
[336845713,1725208528351,-245.21348195,0.00025752,2]
[336845714,1725208528376,-500.0,0.00025752,2]
[336845715,1725208528402,-235.40395105,0.00025752,2]
[336845716,1725208528426,-500.0,0.00025752,2]
[336845717,1725208528452,-500.0,0.00025752,2]
[336845718,1725208528476,-500.0,0.00025752,2]
[336845719,1725208528500,-500.0,0.00025752,2]